[Event "GER-ch Blitz 2019"]
[Site "Magdeburg"]
[Date "2019.05.25"]
[Round "22.13"]
[White "Braeuer, Franz"]
[Black "Svane, Frederik"]
[Result "1-0"]
[ECO "B42"]
[WhiteElo "2445"]
[BlackElo "2342"]
[Annotator "NA"]
[PlyCount "131"]
[EventDate "2019.05.25"]
[EventType "tourn"]
[EventCountry "GER"]
[Tiebreak "Number of wins+Number of black wins"]
[SourceTitle "playchess.com"]
[Source "ChessBase"]
[SourceQuality "1"]
[TimeControl "180+2"]

1. e4 {[%emt 0:00:00]} c5 {[%emt 0:00:00]} 2. Nf3 {[%emt 0:00:00]} e6 {[%emt 0:
00:00]} 3. d4 {[%emt 0:00:00]} cxd4 {[%emt 0:00:01]} 4. Nxd4 {[%emt 0:00:01]}
a6 {[%emt 0:00:00]} 5. Bd3 {[%emt 0:00:02]} Nf6 {[%emt 0:00:02]} 6. O-O {
[%emt 0:00:02]} Qc7 {[%emt 0:00:01]} 7. Qe2 {[%emt 0:00:00]} d6 {[%emt 0:00:01]
} 8. c4 {[%emt 0:00:03]} g6 {[%emt 0:00:02]} 9. Nc3 {[%emt 0:00:05]} Bg7 {
[%emt 0:00:01]} 10. Nf3 {[%emt 0:00:02]} Nc6 {[%emt 0:00:01]} 11. h3 {[%emt 0:
00:01]} O-O {[%emt 0:00:04]} 12. Bf4 {[%emt 0:00:01]} Nd7 {[%emt 0:00:10]} 13.
Rac1 {[%emt 0:00:01]} Nde5 {[%emt 0:00:02]} 14. b3 {[%emt 0:00:24]} b6 {
[%emt 0:00:22]} 15. Rfd1 {[%emt 0:00:02]} Bb7 {[%emt 0:00:03]} 16. Bb1 {
[%emt 0:00:20]} Nxf3+ {[%emt 0:00:30]} 17. Qxf3 {[%emt 0:00:01]} Ne5 {[%emt 0:
00:15]} 18. Qe2 {[%emt 0:00:14]} Rac8 {[%emt 0:00:05]} 19. Be3 {[%emt 0:00:13]}
Rfe8 {[%emt 0:00:28]} 20. Qd2 {[%emt 0:00:18]} Bf8 {[%emt 0:00:17]} 21. Na4 {
[%emt 0:00:14]} Nd7 {[%emt 0:00:02]} 22. Bf4 {[%emt 0:00:06]} e5 {[%emt 0:01:
00]} 23. Be3 {[%emt 0:00:00]} Nc5 {[%emt 0:00:02]} 24. Nc3 {[%emt 0:00:01]} b5
{[%emt 0:00:12]} 25. b4 {[%emt 0:00:16]} Na4 {[%emt 0:00:04]} 26. Nxa4 {
[%emt 0:00:27]} bxa4 {[%emt 0:00:01]} 27. a3 {[%emt 0:00:00]} Bc6 {[%emt 0:00:
02]} 28. Bd3 {[%emt 0:00:04]} Qb7 {[%emt 0:00:00]} 29. f3 {[%emt 0:00:00]} Rb8
{[%emt 0:00:07]} 30. Rb1 {[%emt 0:00:01]} Qd7 {[%emt 0:00:01]} 31. Qe2 {
[%emt 0:00:03]} Rec8 {[%emt 0:00:02]} 32. Rb2 {[%emt 0:00:16]} Rb7 {[%emt 0:00:
02]} 33. Rdb1 {[%emt 0:00:01]} Rcb8 {[%emt 0:00:02]} 34. b5 {[%emt 0:00:12]}
axb5 {[%emt 0:00:01]} 35. cxb5 {[%emt 0:00:01]} d5 {[%emt 0:00:01]} 36. bxc6 {
[%emt 0:00:02]} Qxc6 {[%emt 0:00:01]} 37. Rxb7 {[%emt 0:00:05]} Rxb7 {[%emt 0:
00:01]} 38. Rxb7 {[%emt 0:00:09]} Qxb7 {[%emt 0:00:01]} 39. exd5 {[%emt 0:00:
01]} Bxa3 {[%emt 0:00:02]} 40. Qa2 {[%emt 0:00:02]} Bd6 {[%emt 0:00:04]} 41.
Qxa4 {[%emt 0:00:09]} Qxd5 {[%emt 0:00:01]} 42. Qc4 {[%emt 0:00:02]} Qxc4 {
[%emt 0:00:04]} 43. Bxc4 {[%emt 0:00:00]} Kg7 {[%emt 0:00:01]} 44. Kf2 {
[%emt 0:00:02]} Bc7 {[%emt 0:00:00]} 45. Ke2 {[%emt 0:00:01]} Kf6 {[%emt 0:00:
01]} 46. Kd3 {[%emt 0:00:02]} h5 {[%emt 0:00:02]} 47. g4 {[%emt 0:00:01]} hxg4
48. hxg4 Ke7 {[%emt 0:00:03]} 49. Ke4 {[%emt 0:00:03]} Bd6 {[%emt 0:00:06]} 50.
Bf2 {[%emt 0:00:05]} Kf6 {[%emt 0:00:02]} 51. Bh4+ {[%emt 0:00:01]} Kg7 {
[%emt 0:00:01]} 52. Kd5 {[%emt 0:00:06]} Bb8 {[%emt 0:00:01]} 53. Be7 {[%emt 0:
00:01]} f5 {[%emt 0:00:04]} 54. g5 {[%emt 0:00:04]} Bc7 {[%emt 0:00:05]} 55.
Bf6+ {[%emt 0:00:01]} Kh7 {[%emt 0:00:02]} 56. Bxe5 {[%emt 0:00:02]} Bd8 {
[%emt 0:00:01]} 57. Bf4 {[%emt 0:00:09]} Be7 {[%emt 0:00:00]} 58. Ke6 {[%emt 0:
00:01]} Bd8 {[%emt 0:00:01]} 59. Bb5 {[%emt 0:00:02]} Kg7 {[%emt 0:00:02]} 60.
Be8 {[%emt 0:00:01]} Kh7 {[%emt 0:00:04]} 61. Kf7 {[%emt 0:00:05]} Ba5 {
[%emt 0:00:01]} 62. Bd7 {[%emt 0:00:02]} Bb4 {[%emt 0:00:02]} 63. Bxf5 {
[%emt 0:00:02]} gxf5 {[%emt 0:00:01]} 64. g6+ {[%emt 0:00:01]} Kh8 {[%emt 0:00:
02]} 65. g7+ {[%emt 0:00:00]} Kh7 {[%emt 0:00:01]} 66. g8=Q# 1-0

[Event "GER-ch Blitz 2019"]
[Site "Magdeburg"]
[Date "2019.05.25"]
[Round "22.14"]
[White "Heidrich, Manfred"]
[Black "Ehmann, Thilo"]
[Result "0-1"]
[ECO "C45"]
[WhiteElo "2351"]
[BlackElo "2291"]
[Annotator "NA"]
[PlyCount "70"]
[EventDate "2019.05.25"]
[EventType "tourn"]
[EventCountry "GER"]
[Tiebreak "Number of wins+Number of black wins"]
[SourceTitle "playchess.com"]
[Source "ChessBase"]
[SourceQuality "1"]
[TimeControl "180+2"]

1. e4 {[%emt 0:00:00]} e5 {[%emt 0:00:00]} 2. Nf3 Nc6 3. d4 {[%emt 0:00:01]}
exd4 4. Nxd4 Bc5 {[%emt 0:00:05]} 5. Nxc6 {[%emt 0:00:02]} Qf6 {[%emt 0:00:02]}
6. Qf3 {[%emt 0:00:01]} Qxf3 {[%emt 0:00:20]} 7. gxf3 {[%emt 0:00:01]} dxc6 {
[%emt 0:00:09]} 8. Be3 {[%emt 0:00:01]} Bxe3 {[%emt 0:00:11]} 9. fxe3 Ne7 {
[%emt 0:00:02]} 10. Bc4 {[%emt 0:00:06]} f6 {[%emt 0:00:05]} 11. Nd2 {[%emt 0:
00:02]} Bd7 {[%emt 0:00:03]} 12. Rg1 {[%emt 0:00:08]} g6 {[%emt 0:00:03]} 13.
Ke2 {[%emt 0:00:23]} O-O-O {[%emt 0:00:03]} 14. Rad1 {[%emt 0:00:01]} c5 {
[%emt 0:00:09]} 15. a3 {[%emt 0:00:13]} b5 {[%emt 0:00:22]} 16. Ba2 {[%emt 0:
00:01]} Kb7 {[%emt 0:00:11]} 17. c4 {[%emt 0:00:07]} c6 {[%emt 0:00:01]} 18.
Rc1 {[%emt 0:00:02]} Rc8 {[%emt 0:00:04]} 19. Nb3 {[%emt 0:00:04]} Kb6 {
[%emt 0:00:03]} 20. Nd2 {[%emt 0:00:12]} Be6 {[%emt 0:00:13]} 21. f4 {[%emt 0:
00:29]} Kb7 {[%emt 0:00:11]} 22. Rc2 {[%emt 0:00:06]} a5 {[%emt 0:00:12]} 23.
Rgc1 {[%emt 0:00:05]} b4 {[%emt 0:00:01]} 24. Rg1 {[%emt 0:00:05]} Rhd8 {
[%emt 0:00:04]} 25. Bb3 {[%emt 0:00:04]} Rc7 {[%emt 0:00:03]} 26. Nf3 {[%emt 0:
00:19]} Rcd7 {[%emt 0:00:06]} 27. e5 {[%emt 0:00:02]} Rd3 {[%emt 0:00:15]} 28.
Ba4 {[%emt 0:00:30]} Nf5 {[%emt 0:00:03]} 29. e4 {[%emt 0:00:21]} Re3+ {
[%emt 0:00:05]} 30. Kf2 {[%emt 0:00:01]} Rxe4 {[%emt 0:00:01]} 31. exf6 {
[%emt 0:00:06]} Rxf4 {[%emt 0:00:01]} 32. Re1 {[%emt 0:00:02]} Nd4 {[%emt 0:00:
04]} 33. Re3 {[%emt 0:00:09]} Nxc2 {[%emt 0:00:08]} 34. Bxc2 {[%emt 0:00:03]}
Rxf6 {[%emt 0:00:01]} 35. Kg3 {[%emt 0:00:01]} Bxc4 {[%emt 0:00:06]} 0-1

[Event "GER-ch Blitz 2019"]
[Site "Magdeburg"]
[Date "2019.05.25"]
[Round "22.15"]
[White "Kopylov, Michael"]
[Black "Kirchner, Thomas"]
[Result "0-1"]
[ECO "A52"]
[WhiteElo "2413"]
[BlackElo "2311"]
[Annotator "NA"]
[PlyCount "73"]
[EventDate "2019.05.25"]
[EventType "tourn"]
[EventCountry "GER"]
[Tiebreak "Number of wins+Number of black wins"]
[SourceTitle "playchess.com"]
[Source "ChessBase"]
[SourceQuality "1"]
[TimeControl "180+2"]

1. d4 {[%emt 0:00:00]} Nf6 {[%emt 0:00:00]} 2. c4 {[%emt 0:00:00]} e5 {[%emt 0:
00:00]} 3. dxe5 {[%emt 0:00:03]} Ng4 {[%emt 0:00:00]} 4. Nh3 {[%emt 0:00:01]}
Nxe5 {[%emt 0:00:02]} 5. e3 {[%emt 0:00:01]} Ng6 {[%emt 0:00:02]} 6. f3 Nc6 7.
Nc3 {[%emt 0:00:17]} Bb4 {[%emt 0:00:06]} 8. Qc2 {[%emt 0:00:06]} d6 {[%emt 0:
00:04]} 9. Nf2 {[%emt 0:00:01]} O-O {[%emt 0:00:06]} 10. a3 {[%emt 0:00:01]}
Bc5 {[%emt 0:00:07]} 11. b4 {[%emt 0:00:12]} Bb6 {[%emt 0:00:01]} 12. Nd5 {
[%emt 0:00:02]} Re8 {[%emt 0:00:04]} 13. Be2 {[%emt 0:00:09]} Be6 {[%emt 0:00:
06]} 14. O-O {[%emt 0:00:05]} Bxd5 {[%emt 0:00:10]} 15. cxd5 {[%emt 0:00:01]}
Nce7 {[%emt 0:00:22]} 16. Rd1 {[%emt 0:00:09]} a5 {[%emt 0:00:08]} 17. Bb5 {
[%emt 0:00:43]} c6 {[%emt 0:00:20]} 18. dxc6 {[%emt 0:00:06]} Rc8 {[%emt 0:00:
02]} 19. bxa5 Bxa5 {[%emt 0:00:08]} 20. Ne4 {[%emt 0:00:10]} d5 {[%emt 0:00:12]
} 21. Qc5 {[%emt 0:00:47]} bxc6 {[%emt 0:00:13]} 22. Ba6 {[%emt 0:00:01]} Rb8 {
[%emt 0:00:06]} 23. Bf1 {[%emt 0:00:18]} Bb6 {[%emt 0:00:07]} 24. Qc3 {[%emt 0:
00:01]} Ba5 {[%emt 0:00:09]} 25. Qc2 {[%emt 0:00:05]} Qb6 26. Nc5 {[%emt 0:00:
03]} Qa7 {[%emt 0:00:23]} 27. Kh1 {[%emt 0:00:07]} Bb6 {[%emt 0:00:04]} 28. Na4
{[%emt 0:00:20]} Bxe3 {[%emt 0:00:03]} 29. Bxe3 Qxe3 {[%emt 0:00:02]} 30. Re1 {
[%emt 0:00:01]} Qa7 {[%emt 0:00:04]} 31. Nc5 {[%emt 0:00:00]} Red8 {[%emt 0:00:
10]} 32. a4 {[%emt 0:00:02]} d4 {[%emt 0:00:05]} 33. Bc4 {[%emt 0:00:01]} Nd5 {
[%emt 0:00:02]} 34. Ne4 {[%emt 0:00:02]} Ne3 {[%emt 0:00:03]} 35. Qd3 {[%emt 0:
00:02]} c5 {[%emt 0:00:03]} 36. a5 {[%emt 0:00:02]} Ne5 {[%emt 0:00:01]} 37.
Rxe3 0-1

[Event "GER-ch Blitz 2019"]
[Site "Magdeburg"]
[Date "2019.05.25"]
[Round "23.1"]
[White "Gustafsson, Jan"]
[Black "Carow, Johannes"]
[Result "0-1"]
[ECO "A04"]
[WhiteElo "2639"]
[BlackElo "2445"]
[Annotator "ChessBase"]
[PlyCount "73"]
[EventDate "2019.05.25"]
[EventType "tourn"]
[EventCountry "GER"]
[Tiebreak "Number of wins+Number of black wins"]
[SourceTitle "playchess.com"]
[Source "ChessBase"]
[SourceQuality "1"]
[TimeControl "180+2"]

1. Nf3 {[%emt 0:00:00]} c5 {[%emt 0:00:00]} 2. c4 {[%emt 0:00:01]} Nc6 {
[%emt 0:00:00]} 3. d4 {[%emt 0:00:01]} cxd4 4. Nxd4 {[%emt 0:00:01]} Qb6 {
[%emt 0:00:02]} 5. Nc2 {[%emt 0:00:04]} Nf6 {[%emt 0:00:08]} 6. Nc3 {[%emt 0:
00:01]} e6 {[%emt 0:00:02]} 7. g3 {[%emt 0:00:03]} Ne5 {[%emt 0:00:13]} 8. Bg2
{[%emt 0:00:02]} Nxc4 {[%emt 0:00:19]} 9. b3 {[%emt 0:00:05]} Qa5 {[%emt 0:00:
23]} 10. Qd4 {[%emt 0:00:16]} Nb6 11. b4 {[%emt 0:00:27]} Qh5 {[%emt 0:00:21]}
12. O-O {[%emt 0:00:10]} Be7 {[%emt 0:00:09]} 13. a4 {[%emt 0:00:07]} d5 {
[%emt 0:00:13]} 14. a5 {[%emt 0:00:21]} Nc4 {[%emt 0:00:10]} 15. e4 {[%emt 0:
00:05]} Ng4 {[%emt 0:00:25]} 16. h3 {[%emt 0:00:06]} Bf6 {[%emt 0:00:01]} 17.
Qd1 {[%emt 0:00:36]} Bxc3 {[%emt 0:00:05]} 18. hxg4 {[%emt 0:00:01]} Qg6 {
[%emt 0:00:08]} 19. Ra2 {[%emt 0:00:07]} O-O {[%emt 0:00:24]} 20. exd5 {
[%emt 0:00:02]} exd5 {[%emt 0:00:01]} 21. Qxd5 {[%emt 0:00:06]} Be6 {[%emt 0:
00:05]} 22. Qh5 {[%emt 0:00:06]} Rad8 {[%emt 0:00:17]} 23. Qxg6 {[%emt 0:00:04]
} hxg6 {[%emt 0:00:01]} 24. Ra4 {[%emt 0:00:15]} b5 {[%emt 0:00:07]} 25. axb6 {
[%emt 0:00:02]} axb6 {[%emt 0:00:01]} 26. b5 {[%emt 0:00:05]} Nd2 {[%emt 0:00:
01]} 27. Bxd2 {[%emt 0:00:04]} Rxd2 {[%emt 0:00:02]} 28. Ne3 {[%emt 0:00:03]}
Bd4 {[%emt 0:00:05]} 29. Re1 {[%emt 0:00:07]} Bc5 {[%emt 0:00:05]} 30. g5 {
[%emt 0:00:06]} Rfd8 {[%emt 0:00:02]} 31. Bc6 {[%emt 0:00:07]} Rb2 {[%emt 0:00:
02]} 32. Kg2 {[%emt 0:00:17]} Be7 {[%emt 0:00:05]} 33. Ra7 {[%emt 0:00:03]}
Bxg5 {[%emt 0:00:03]} 34. Rd1 {[%emt 0:00:01]} Rxd1 {[%emt 0:00:05]} 35. Nxd1 {
[%emt 0:00:01]} Rd2 {[%emt 0:00:01]} 36. Nc3 {[%emt 0:00:00]} f5 {[%emt 0:00:
03]} 37. Rb7 {[%emt 0:00:02]} 0-1

[Event "GER-ch Blitz 2019"]
[Site "Magdeburg"]
[Date "2019.05.25"]
[Round "23.2"]
[White "Schulz, Karsten"]
[Black "Schneider, Ilja"]
[Result "1/2-1/2"]
[ECO "A06"]
[WhiteElo "2227"]
[BlackElo "2494"]
[Annotator "ChessBase"]
[PlyCount "88"]
[EventDate "2019.05.25"]
[EventType "tourn"]
[EventCountry "GER"]
[Tiebreak "Number of wins+Number of black wins"]
[SourceTitle "playchess.com"]
[Source "ChessBase"]
[SourceQuality "1"]
[TimeControl "180+2"]

1. Nf3 {[%emt 0:00:00]} d5 {[%emt 0:00:00]} 2. c4 {[%emt 0:00:04]} c6 {[%emt 0:
00:00]} 3. g3 {[%emt 0:00:01]} Bg4 {[%emt 0:00:01]} 4. Bg2 {[%emt 0:00:02]} e6
{[%emt 0:00:01]} 5. cxd5 {[%emt 0:00:06]} Bxf3 {[%emt 0:00:05]} 6. Bxf3 {
[%emt 0:00:02]} cxd5 {[%emt 0:00:00]} 7. Qb3 {[%emt 0:00:03]} Qd7 {[%emt 0:00:
01]} 8. O-O {[%emt 0:00:05]} Nc6 {[%emt 0:00:01]} 9. Bg2 {[%emt 0:00:00]} Nf6 {
[%emt 0:00:01]} 10. Nc3 {[%emt 0:00:05]} Be7 {[%emt 0:00:05]} 11. d3 {[%emt 0:
00:02]} O-O {[%emt 0:00:07]} 12. Bf4 {[%emt 0:00:09]} Nd4 {[%emt 0:00:08]} 13.
Qd1 {[%emt 0:00:03]} Rfc8 {[%emt 0:00:02]} 14. Be5 {[%emt 0:00:06]} Nc6 {
[%emt 0:00:03]} 15. Bf4 {[%emt 0:00:03]} Bd6 {[%emt 0:00:13]} 16. Bg5 {[%emt 0:
00:03]} Be5 {[%emt 0:00:05]} 17. Bxf6 {[%emt 0:00:10]} Bxf6 {[%emt 0:00:02]}
18. Qd2 {[%emt 0:00:01]} Nd4 {[%emt 0:00:21]} 19. Rac1 {[%emt 0:00:07]} Rc6 {
[%emt 0:00:08]} 20. e3 {[%emt 0:00:05]} Nf5 {[%emt 0:00:01]} 21. d4 {[%emt 0:
00:01]} Nd6 {[%emt 0:00:03]} 22. b3 {[%emt 0:00:03]} Rac8 {[%emt 0:00:02]} 23.
Na4 {[%emt 0:00:06]} Qc7 {[%emt 0:00:09]} 24. Rxc6 {[%emt 0:00:15]} Qxc6 25.
Nc5 {[%emt 0:00:06]} b6 {[%emt 0:00:58]} 26. Nd3 {[%emt 0:00:02]} Qc2 {[%emt 0:
00:20]} 27. Rd1 {[%emt 0:00:01]} Be7 {[%emt 0:00:15]} 28. h3 {[%emt 0:00:13]}
g6 {[%emt 0:00:02]} 29. Ne5 {[%emt 0:00:26]} f6 {[%emt 0:00:07]} 30. Nd3 {
[%emt 0:00:02]} Kf7 {[%emt 0:00:06]} 31. Nf4 {[%emt 0:00:04]} g5 {[%emt 0:00:
05]} 32. Nd3 {[%emt 0:00:05]} Ne4 {[%emt 0:00:01]} 33. Qxc2 Rxc2 {[%emt 0:00:
01]} 34. a4 {[%emt 0:00:34]} Nc3 {[%emt 0:00:05]} 35. Ra1 {[%emt 0:00:10]} Rd2
{[%emt 0:00:05]} 36. Bf1 {[%emt 0:00:09]} a5 {[%emt 0:00:04]} 37. Rc1 {[%emt 0:
00:03]} Bb4 {[%emt 0:00:03]} 38. Kg2 {[%emt 0:00:08]} Ke7 {[%emt 0:00:02]} 39.
Kf3 {[%emt 0:00:02]} Kd6 {[%emt 0:00:01]} 40. Kg2 {[%emt 0:00:02]} e5 41. dxe5+
fxe5 {[%emt 0:00:02]} 42. Ne1 {[%emt 0:00:12]} d4 {[%emt 0:00:13]} 43. exd4 {
[%emt 0:00:04]} exd4 {[%emt 0:00:02]} 44. Nf3 {[%emt 0:00:02]} Rb2 {[%emt 0:00:
02]} 1/2-1/2

[Event "GER-ch Blitz 2019"]
[Site "Magdeburg"]
[Date "2019.05.25"]
[Round "23.3"]
[White "Krause, Benedict"]
[Black "Stern, Rene"]
[Result "1/2-1/2"]
[ECO "C55"]
[WhiteElo "2434"]
[BlackElo "2538"]
[Annotator "ChessBase"]
[PlyCount "151"]
[EventDate "2019.05.25"]
[EventType "tourn"]
[EventCountry "GER"]
[Tiebreak "Number of wins+Number of black wins"]
[SourceTitle "playchess.com"]
[Source "ChessBase"]
[SourceQuality "1"]
[TimeControl "180+2"]

1. e4 {[%emt 0:00:00]} e5 {[%emt 0:00:00]} 2. Nf3 {[%emt 0:00:00]} Nc6 {
[%emt 0:00:00]} 3. Bc4 {[%emt 0:00:01]} Nf6 {[%emt 0:00:00]} 4. d3 {[%emt 0:00:
01]} Be7 {[%emt 0:00:01]} 5. O-O {[%emt 0:00:03]} O-O {[%emt 0:00:01]} 6. Re1 {
[%emt 0:00:01]} d6 {[%emt 0:00:01]} 7. a4 {[%emt 0:00:01]} a5 {[%emt 0:00:01]}
8. Nc3 {[%emt 0:00:02]} h6 {[%emt 0:00:04]} 9. h3 {[%emt 0:00:01]} Nh7 {
[%emt 0:00:07]} 10. d4 {[%emt 0:00:10]} Ng5 {[%emt 0:00:06]} 11. Nxg5 {[%emt 0:
00:59]} Bxg5 {[%emt 0:00:02]} 12. dxe5 {[%emt 0:00:01]} Nxe5 {[%emt 0:00:06]}
13. Bb3 {[%emt 0:00:06]} Bxc1 {[%emt 0:00:21]} 14. Qxc1 {[%emt 0:00:04]} Be6 {
[%emt 0:00:01]} 15. Bxe6 {[%emt 0:01:04]} fxe6 {[%emt 0:00:01]} 16. f4 {
[%emt 0:00:01]} Nd7 {[%emt 0:00:27]} 17. Qe3 {[%emt 0:00:02]} Qh4 {[%emt 0:00:
07]} 18. Rf1 {[%emt 0:00:03]} Rf7 {[%emt 0:00:02]} 19. Kh2 {[%emt 0:00:07]}
Raf8 {[%emt 0:00:05]} 20. g3 {[%emt 0:00:01]} Qh5 {[%emt 0:00:01]} 21. Kg2 {
[%emt 0:00:04]} Nc5 {[%emt 0:00:19]} 22. b3 {[%emt 0:00:02]} Qg6 {[%emt 0:00:
03]} 23. Rae1 {[%emt 0:00:03]} b6 {[%emt 0:00:03]} 24. Kh2 {[%emt 0:00:04]} Qf6
{[%emt 0:00:21]} 25. Kg2 {[%emt 0:00:21]} Qd8 {[%emt 0:00:04]} 26. Rd1 {
[%emt 0:00:03]} Qa8 {[%emt 0:00:01]} 27. Kh2 {[%emt 0:00:00]} Qc6 {[%emt 0:00:
01]} 28. Rde1 {[%emt 0:00:04]} Kh7 {[%emt 0:00:15]} 29. g4 {[%emt 0:00:02]} Nd7
{[%emt 0:00:21]} 30. Rf2 {[%emt 0:00:06]} Qc5 {[%emt 0:00:01]} 31. Qxc5 Nxc5 {
[%emt 0:00:01]} 32. Ref1 {[%emt 0:00:03]} g6 {[%emt 0:00:04]} 33. Kg3 {[%emt 0:
00:01]} Kg7 {[%emt 0:00:03]} 34. f5 {[%emt 0:00:07]} gxf5 {[%emt 0:00:05]} 35.
exf5 {[%emt 0:00:01]} exf5 {[%emt 0:00:01]} 36. Rxf5 {[%emt 0:00:01]} Rxf5 {
[%emt 0:00:03]} 37. Rxf5 {[%emt 0:00:01]} Re8 {[%emt 0:00:21]} 38. Kf3 {
[%emt 0:00:03]} c6 {[%emt 0:00:01]} 39. Rf4 {[%emt 0:00:09]} d5 {[%emt 0:00:01]
} 40. Kg2 {[%emt 0:00:06]} Kg6 {[%emt 0:00:07]} 41. h4 {[%emt 0:00:01]} Re3 {
[%emt 0:00:02]} 42. Rf3 {[%emt 0:00:01]} Re1 {[%emt 0:00:03]} 43. Rf1 {[%emt 0:
00:10]} Re8 {[%emt 0:00:03]} 44. Rf3 {[%emt 0:00:02]} Re5 {[%emt 0:00:08]} 45.
Rf2 {[%emt 0:00:03]} Ne4 {[%emt 0:00:02]} 46. Nxe4 Rxe4 47. Kg3 Re3+ {[%emt 0:
00:02]} 48. Rf3 {[%emt 0:00:02]} Re2 49. Rf2 Re4 {[%emt 0:00:02]} 50. Rf4 {
[%emt 0:00:01]} Re8 {[%emt 0:00:02]} 51. h5+ {[%emt 0:00:01]} Kg7 {[%emt 0:00:
01]} 52. Rf2 {[%emt 0:00:02]} c5 {[%emt 0:00:04]} 53. Rf5 {[%emt 0:00:03]} d4 {
[%emt 0:00:01]} 54. Rd5 {[%emt 0:00:01]} Re3+ {[%emt 0:00:01]} 55. Kf4 {
[%emt 0:00:01]} Rc3 {[%emt 0:00:00]} 56. Rd7+ {[%emt 0:00:01]} Kf6 {[%emt 0:00:
01]} 57. Rd6+ {[%emt 0:00:01]} Kg7 {[%emt 0:00:00]} 58. Rd7+ {[%emt 0:00:01]}
Kf6 {[%emt 0:00:02]} 59. Rh7 {[%emt 0:00:06]} Rxc2 {[%emt 0:00:01]} 60. Rxh6+ {
[%emt 0:00:00]} Kg7 {[%emt 0:00:01]} 61. Rxb6 {[%emt 0:00:01]} Rf2+ {[%emt 0:
00:07]} 62. Ke4 Rg2 63. Rg6+ {[%emt 0:00:07]} Kh7 {[%emt 0:00:01]} 64. g5 {
[%emt 0:00:05]} Rg3 {[%emt 0:00:05]} 65. Rh6+ {[%emt 0:00:06]} Kg7 {[%emt 0:00:
01]} 66. Rg6+ {[%emt 0:00:00]} Kh7 {[%emt 0:00:02]} 67. Ra6 {[%emt 0:00:02]}
Rxg5 {[%emt 0:00:01]} 68. Rxa5 Rxh5 69. Ra7+ Kg6 {[%emt 0:00:04]} 70. Rc7 {
[%emt 0:00:02]} Rh3 {[%emt 0:00:02]} 71. a5 {[%emt 0:00:01]} Rxb3 {[%emt 0:00:
01]} 72. Rxc5 {[%emt 0:00:01]} d3 {[%emt 0:00:03]} 73. Rd5 {[%emt 0:00:01]} Ra3
{[%emt 0:00:01]} 74. Ke3 {[%emt 0:00:01]} Kf6 {[%emt 0:00:02]} 75. Rxd3 Rxa5 {
[%emt 0:00:02]} 76. Ke4 {Ke5+} 1/2-1/2